fUST/lending_fUST_20240423
["ID","MTS","AMOUNT","RATE_DAILY","PERIOD"]
[323311757,1713885047211,-500.0,0.00020273,2]
[323311758,1713885047315,-500.0,0.00020273,2]
[323311759,1713885047324,-500.0,0.00020273,2]
[323311760,1713885047333,-1021.46,0.00020273,2]
[323311761,1713885047343,-500.0,0.00020273,2]
[323311762,1713885047352,-392.67216178,0.00020273,2]
[323311763,1713885047361,-513.54,0.00020273,2]
[323311764,1713885047371,-500.0,0.00020273,2]
[323311765,1713885047380,-550.03,0.00020273,2]
[323311766,1713885047389,-417.73506971,0.00020273,2]
[323311767,1713885047398,-500.0,0.00020273,2]
[323311768,1713885047408,-500.0,0.00020273,2]
[323311769,1713885047417,-812.03,0.00020273,2]
[323311770,1713885047426,-518.96,0.00020273,2]
[323311771,1713885047437,-500.0,0.00020273,2]
[323311772,1713885047446,-500.0,0.00020273,2]
[323311773,1713885047455,-500.0,0.00020273,2]
[323311774,1713885047464,-500.0,0.00020273,2]
[323311775,1713885047474,-560.65,0.00020273,2]
[323311777,1713885047483,-351.91149011,0.00020273,2]
[323311779,1713885047493,-500.0,0.00020273,2]
[323311781,1713885047502,-500.0,0.00020273,2]
[323311783,1713885047511,-500.0,0.00020273,2]
[323311784,1713885047521,-500.0,0.00020273,2]
[323311786,1713885047531,-500.0,0.00020273,2]
[323311788,1713885047540,-876.42,0.00020273,2]
[323311790,1713885047549,-500.0,0.00020273,2]
[323311792,1713885047558,-500.0,0.00020273,2]
[323311794,1713885047567,-500.0,0.00020273,2]
[323311796,1713885047576,-500.0,0.00020273,2]
[323311797,1713885047585,-500.0,0.00020273,2]
[323311799,1713885047594,-500.0,0.00020273,2]
[323311800,1713885047603,-500.0,0.00020273,2]
[323311802,1713885047612,-511.85838127,0.00020273,2]
[323311804,1713885047621,-500.0,0.00020273,2]
[323311805,1713885047630,-500.0,0.00020273,2]
[323311807,1713885047641,-532.12,0.00020273,2]
[323311809,1713885047650,-500.0,0.00020273,2]
[323311811,1713885047659,-1446.37,0.00020273,2]
[323311812,1713885047669,-500.0,0.00020273,2]
[323311813,1713885047679,-500.0,0.00020273,2]
[323311814,1713885047691,-500.0,0.00020273,2]
[323311815,1713885047700,-500.0,0.00020273,2]
[323311816,1713885047710,-1090.07,0.00020273,2]
[323311817,1713885047721,-500.0,0.00020273,2]
[323311818,1713885047730,-500.0,0.00020273,2]
[323311819,1713885047739,-1163.64,0.00020273,2]
[323311820,1713885047748,-899.88,0.00020273,2]
[323311821,1713885047758,-500.0,0.00020273,2]
[323311822,1713885047770,-500.0,0.00020273,2]
[323311823,1713885047779,-1694.71,0.00020273,2]
[323311824,1713885047788,-500.0,0.00020273,2]
[323311825,1713885047797,-570.76,0.00020273,2]
[323311826,1713885047807,-500.0,0.00020273,2]
[323311827,1713885047816,-1083.96,0.00020273,2]
[323311828,1713885047826,-500.0,0.00020273,2]
[323311829,1713885047835,-500.0,0.00020273,2]
[323311830,1713885047848,-500.0,0.00020273,2]
[323311831,1713885047882,-560.75,0.00020273,2]
[323311832,1713885047892,-3363.0,0.00020273,2]
[323311833,1713885047902,-786.71,0.00020273,2]
[323311834,1713885047912,-500.0,0.00020273,2]
[323311835,1713885047921,-500.0,0.00020273,2]
[323311836,1713885047931,-500.0,0.00020273,2]
[323311837,1713885047945,-609.31,0.00020273,2]
[323311838,1713885047955,-500.0,0.00020273,2]
[323311839,1713885047967,-866.84,0.00020273,2]
[323311840,1713885047976,-500.0,0.00020273,2]
[323311841,1713885047986,-635.14,0.00020273,2]
[323311842,1713885047996,-2388.99,0.00020273,2]
[323311843,1713885048006,-628.52,0.00020273,2]
[323311844,1713885048017,-5652.52,0.00020273,2]
[323311845,1713885048026,-500.0,0.00020273,2]
[323311846,1713885048036,-500.0,0.00020273,2]
[323311847,1713885048046,-500.0,0.00020273,2]
[323311848,1713885048057,-4913.74,0.00020273,2]
[323311849,1713885048066,-673.44,0.00020273,2]
[323311850,1713885048076,-500.0,0.00020273,2]
[323311852,1713885048086,-500.0,0.00020273,2]
[323311853,1713885048095,-516.03,0.00020273,2]
[323311855,1713885048105,-500.0,0.00020273,2]
[323311857,1713885048118,-500.0,0.00020273,2]
[323311858,1713885048128,-500.0,0.00020273,2]
[323311860,1713885048137,-620.65,0.00020273,2]
[323311862,1713885048148,-939.86,0.00020273,2]
[323311864,1713885048157,-500.0,0.00020273,2]
[323311865,1713885048166,-1131.05,0.00020273,2]
[323311866,1713885048175,-500.0,0.00020273,2]
[323311867,1713885048187,-500.0,0.00020273,2]
[323311868,1713885048197,-500.0,0.00020273,2]
[323311869,1713885048206,-2748.19,0.00020273,2]
[323311870,1713885048215,-768.7,0.00020273,2]
[323311872,1713885048225,-500.0,0.00020273,2]
[323311873,1713885048236,-20529.97,0.00020273,2]
[323311874,1713885048246,-765.26,0.00020273,2]
[323311876,1713885048257,-500.0,0.00020273,2]
[323311877,1713885048268,-573.19,0.00020273,2]
[323311878,1713885048278,-837.11,0.00020273,2]
[323311879,1713885048288,-518.39,0.00020273,2]
[323311880,1713885048298,-500.0,0.00020273,2]
[323311881,1713885048308,-3037.41,0.00020273,2]
[323311882,1713885048317,-500.0,0.00020273,2]
[323311883,1713885048327,-707.96,0.00020273,2]
[323311884,1713885048336,-500.0,0.00020273,2]
[323311885,1713885048345,-2782.91,0.00020273,2]
[323311887,1713885048354,-500.0,0.00020273,2]
[323311888,1713885048364,-1202.38,0.00020273,2]
[323311890,1713885048373,-500.0,0.00020273,2]
[323311891,1713885048383,-583.97,0.00020273,2]
[323311893,1713885048392,-500.0,0.00020273,2]
[323311894,1713885048402,-500.0,0.00020273,2]
[323311895,1713885048411,-969.69,0.00020273,2]
[323311896,1713885048420,-500.0,0.00020273,2]
[323311897,1713885048429,-500.0,0.00020273,2]
[323311898,1713885048440,-500.0,0.00020273,2]
[323311899,1713885048450,-500.0,0.00020273,2]
[323311900,1713885048460,-500.0,0.00020273,2]
[323311901,1713885048469,-500.0,0.00020273,2]
[323311902,1713885048480,-613.6,0.00020273,2]
[323311903,1713885048489,-3788.24,0.00020273,2]
[323311904,1713885048499,-500.0,0.00020273,2]
[323311905,1713885048508,-704.7,0.00020273,2]
[323311906,1713885048518,-500.0,0.00020273,2]
[323311907,1713885048527,-500.0,0.00020273,2]
[323311908,1713885048537,-6007.47,0.00020273,2]
[323311909,1713885048547,-500.0,0.00020273,2]
[323311910,1713885048556,-500.0,0.00020273,2]
[323311911,1713885048565,-1640.97,0.00020273,2]
[323311912,1713885048575,-500.0,0.00020273,2]
[323311913,1713885048584,-500.0,0.00020273,2]
[323311914,1713885048594,-539.0,0.00020273,2]
[323311915,1713885048603,-500.0,0.00020273,2]
[323311916,1713885048612,-500.0,0.00020273,2]
[323311917,1713885048621,-500.0,0.00020273,2]
[323311918,1713885048630,-500.0,0.00020273,2]
[323311919,1713885048640,-840.62965653,0.00020273,2]
[323313997,1713885590090,1000.0,0.00022,23]
[323314015,1713886145174,-154.79876161,0.00014414,2]
[323314016,1713886145196,-1090.52068603,0.00014415,2]
[323314017,1713886145218,-154.79876161,0.00014416,2]
[323314018,1713886145239,-2623.97456043,0.00014416,2]
[323314019,1713886145261,-300.0,0.00014417,2]
[323314020,1713886145283,-300.0,0.00014417,2]
[323314021,1713886145303,-10262.21951046,0.00014418,2]
[323314022,1713886162122,-15799.60573685,0.00014418,2]
[323314023,1713886173100,-9752.50314858,0.00014418,2]
[323314024,1713886173123,-169.27597088,0.0001452,2]
[323314025,1713886173145,-188.81822926,0.00014628,2]
[323314026,1713886173165,-237.86483924,0.00014661,2]
[323314027,1713886173184,-1090.52068603,0.00014661,2]
[323314028,1713886173206,-1713.01948211,0.00014662,2]
[323314029,1713886173228,-3684.92561561,0.00014663,2]
[323314050,1713886232337,-300.0,0.00014662,2]
[323314052,1713886232347,-300.0,0.00014662,2]
[323314055,1713886232356,-1967.52722535,0.00014663,2]
[323314233,1713886238242,-19247.54715904,0.00014663,2]
[323314235,1713886238251,-420.0,0.00016052,2]
[323314237,1713886238261,-420.0,0.00016128,2]
[323314238,1713886238270,-628.221272,0.00016433,2]
[323314241,1713886238279,-312.61134477,0.00016449,2]
[323314242,1713886238289,-2775.48792824,0.00016449,2]
[323314245,1713886238298,-587.0,0.00017741,2]
[323314247,1713886238308,-767.25941851,0.00017997,2]
[323314249,1713886238317,-2321.81758293,0.000189,2]
[323314251,1713886238326,-944.1237298,0.00019,2]
[323314252,1713886238335,-1090.52068603,0.00019177,2]
[323314254,1713886238344,-500.0,0.00019178,2]
[323314256,1713886238353,-500.0,0.00019178,2]
[323314258,1713886238362,-500.0,0.00019178,2]
[323314260,1713886238371,-500.0,0.00019178,2]
[323314262,1713886238381,-1054.9,0.00019178,2]
[323314264,1713886238390,-626.44,0.00019178,2]
[323314267,1713886238402,-500.0,0.00019178,2]
[323314269,1713886238410,-844.11,0.00019178,2]
[323314271,1713886238420,-500.0,0.00019178,2]
[323314273,1713886238429,-617.18,0.00019178,2]
[323314275,1713886238442,-500.0,0.00019178,2]
[323314276,1713886238451,-1366.2,0.00019178,2]
[323314278,1713886238460,-527.52,0.00019178,2]
[323314280,1713886238470,-500.89,0.00019178,2]
[323314282,1713886238480,-500.0,0.00019178,2]
[323314284,1713886238488,-500.0,0.00019178,2]
[323314286,1713886238498,-500.0,0.00019178,2]
[323314288,1713886238507,-500.0,0.00019178,2]
[323314290,1713886238516,-500.0,0.00019178,2]
[323314292,1713886238525,-525.74,0.00019178,2]
[323314294,1713886238534,-868.46,0.00019178,2]
[323314296,1713886238543,-500.0,0.00019178,2]
[323314298,1713886238551,-500.0,0.00019178,2]
[323314300,1713886238558,-596.98,0.00019178,2]
[323314302,1713886238568,-500.0,0.00019178,2]
[323314304,1713886238577,-1665.09,0.00019178,2]
[323314306,1713886238585,-500.0,0.00019178,2]
[323314308,1713886238594,-500.0,0.00019178,2]
[323314310,1713886238603,-500.0,0.00019178,2]
[323314312,1713886238613,-500.0,0.00019178,2]
[323314314,1713886238621,-500.0,0.00019178,2]
[323314316,1713886238630,-500.0,0.00019178,2]
[323314318,1713886238639,-500.0,0.00019178,2]
[323314320,1713886238648,-500.0,0.00019178,2]
[323314322,1713886238659,-570.31,0.00019178,2]
[323314324,1713886238668,-500.0,0.00019178,2]
[323314326,1713886238677,-320.3555678,0.00019178,2]
[323314328,1713886238688,-500.0,0.00019178,2]
[323314330,1713886238697,-539.94,0.00019178,2]
[323314332,1713886238707,-500.0,0.00019178,2]
[323314346,1713886238835,-1199.02,0.00019178,2]
[323314348,1713886238846,-586.12,0.00019178,2]
[323314351,1713886238855,-210.23200303,0.00019178,2]
[323314352,1713886238865,-508.67049919,0.00019178,2]
[323314354,1713886238874,-500.0,0.00019178,2]
[323314356,1713886238885,-500.0,0.00019178,2]
[323314359,1713886238894,-500.0,0.00019178,2]
[323314361,1713886238903,-500.0,0.00019178,2]
[323314362,1713886238912,-521.96,0.00019178,2]
[323314364,1713886238922,-500.0,0.00019178,2]
[323314367,1713886238931,-500.0,0.00019178,2]
[323314368,1713886238942,-500.0,0.00019178,2]
[323314371,1713886238951,-1114.95,0.00019178,2]
[323314373,1713886238960,-816.42,0.00019178,2]
[323314374,1713886238969,-500.0,0.00019178,2]
[323314377,1713886238979,-904.34,0.00019178,2]
[323314379,1713886238988,-896.42,0.00019178,2]
[323314380,1713886238997,-500.0,0.00019178,2]
[323314382,1713886239007,-500.0,0.00019178,2]
[323314385,1713886239018,-485.33448319,0.00019178,2]
[323314387,1713886239027,-500.0,0.00019178,2]
[323314388,1713886239040,-573.19,0.00019178,2]
[323314390,1713886239050,-500.0,0.00019178,2]
[323314392,1713886239061,-608.2,0.00019178,2]
[323314395,1713886239071,-922.51,0.00019178,2]
[323314397,1713886239081,-500.0,0.00019178,2]
[323314399,1713886239091,-500.0,0.00019178,2]
[323314400,1713886239100,-500.0,0.00019178,2]
[323314403,1713886239112,-6463.7,0.00019178,2]
[323314405,1713886239121,-465.43735816,0.00019178,2]
[323314407,1713886239131,-500.0,0.00019178,2]
[323314409,1713886239140,-944.94,0.00019178,2]
[323314411,1713886239150,-500.0,0.00019178,2]
[323314413,1713886239159,-500.0,0.00019178,2]
[323314415,1713886239169,-1823.03,0.00019178,2]
[323314417,1713886239178,-618.72,0.00019178,2]
[323314418,1713886239188,-500.0,0.00019178,2]
[323314420,1713886239198,-500.17158671,0.00019178,2]
[323314422,1713886239207,-500.0,0.00019178,2]
[323314424,1713886239217,-5801.32,0.00019178,2]
[323314426,1713886239226,-500.0,0.00019178,2]
[323314429,1713886239236,-771.55,0.00019178,2]
[323314430,1713886239246,-19674.56,0.00019178,2]
[323314433,1713886239255,-500.0,0.00019178,2]
[323314434,1713886239264,-500.0,0.00019178,2]
[323314436,1713886239274,-500.0,0.00019178,2]
[323314439,1713886239284,-3292.02,0.00019178,2]
[323314441,1713886239294,-500.0,0.00019178,2]
[323314443,1713886239306,-500.0,0.00019178,2]
[323314445,1713886239315,-909.24,0.00019178,2]
[323314447,1713886239325,-1207.85,0.00019178,2]
[323314449,1713886239334,-500.0,0.00019178,2]
[323314451,1713886239343,-500.0,0.00019178,2]
[323314453,1713886239352,-3067.93,0.00019178,2]
[323314455,1713886239361,-500.0,0.00019178,2]
[323314457,1713886239370,-500.0,0.00019178,2]
[323314459,1713886239380,-500.0,0.00019178,2]
[323314461,1713886239389,-500.0,0.00019178,2]
[323314463,1713886239398,-500.0,0.00019178,2]
[323314465,1713886239408,-500.0,0.00019178,2]
[323314467,1713886239417,-500.0,0.00019178,2]
[323314469,1713886239426,-500.0,0.00019178,2]
[323314471,1713886239438,-500.0,0.00019178,2]
[323314473,1713886239447,-189.35698328,0.00019178,2]
[323314475,1713886239456,-500.0,0.00019178,2]
[323314477,1713886239466,-500.0,0.00019178,2]
[323314479,1713886239476,-500.0,0.00019178,2]
[323314481,1713886239485,-608.87,0.00019178,2]
[323314483,1713886239494,-556.58,0.00019178,2]
[323314484,1713886239503,-500.0,0.00019178,2]
[323314486,1713886239512,-500.0,0.00019178,2]
[323314488,1713886239521,-500.0,0.00019178,2]
[323314490,1713886239530,-500.0,0.00019178,2]
[323314492,1713886239539,-500.0,0.00019178,2]
[323314494,1713886239548,-3723.77,0.00019178,2]
[323314496,1713886239558,-500.0,0.00019178,2]
[323314498,1713886239568,-501.81796725,0.00019178,2]
[323314501,1713886239578,-500.0,0.00019178,2]
[323314502,1713886239588,-1648.21,0.00019178,2]
[323314505,1713886239598,-250.86479714,0.00019178,2]
[323314507,1713886239608,-500.0,0.00019178,2]
[323314509,1713886239618,-500.0,0.00019178,2]
[323314511,1713886239628,-500.0,0.00019178,2]
[323314512,1713886239638,-500.0,0.00019178,2]
[323314515,1713886239647,-6180.36,0.00019178,2]
[323314517,1713886239657,-500.0,0.00019178,2]
[323314519,1713886239666,-500.0,0.00019178,2]
[323314521,1713886239676,-613.16,0.00019178,2]
[323314522,1713886239685,-508.80885748,0.00019178,2]
[323314523,1713886239697,-707.77,0.00019178,2]
[323314525,1713886239707,-500.0,0.00019178,2]
[323314527,1713886239718,-500.0,0.00019178,2]
[323314529,1713886239727,-567.37810752,0.00019178,2]
[323314531,1713886239737,-500.0,0.00019178,2]
[323314532,1713886239746,-903.3,0.00019178,2]
[323314534,1713886239756,-380.70343318,0.00019178,2]
[323314535,1713886239766,-200.96345925,0.00019178,2]
[323314537,1713886239775,-500.0,0.00019178,2]
[323314539,1713886239784,-500.0,0.00019178,2]
[323314542,1713886239794,-500.0,0.00019178,2]
[323314544,1713886239804,-501.11,0.00019178,2]
[323314546,1713886239812,-500.0,0.00019178,2]
[323314548,1713886239822,-3150.19,0.00019178,2]
[323314550,1713886239831,-500.0,0.00019178,2]
[323314552,1713886239841,-500.0,0.00019178,2]
[323314554,1713886239850,-159.529201,0.00019178,2]
[323314557,1713886239859,-165.939959,0.00019178,2]
[323314560,1713886239868,-500.0,0.0001945,2]
[323314562,1713886239877,-500.0,0.00019451,2]
[323314564,1713886239887,-500.0,0.00019451,2]
[323314566,1713886239896,-500.0,0.00019451,2]
[323314567,1713886239905,-500.0,0.00019451,2]
[323314569,1713886239915,-500.0,0.00019451,2]
[323314571,1713886239924,-486.93249255,0.00019451,2]
[323314574,1713886239933,-500.0,0.00019451,2]
[323314575,1713886239945,-500.0,0.00019451,2]
[323314577,1713886239955,-500.0,0.00019451,2]
[323314579,1713886239964,-500.0,0.00019451,2]
[323314582,1713886239974,-500.0,0.00019451,2]
[323314584,1713886239983,-500.0,0.00019451,2]
[323314586,1713886239992,-510.27205363,0.00019451,2]
[323314588,1713886240002,-288.71947098,0.00019451,2]
[323314589,1713886240011,-500.0,0.00019451,2]
[323314592,1713886240022,-500.0,0.00019451,2]
[323314593,1713886240034,-500.0,0.00019451,2]
[323314595,1713886240043,-500.0,0.00019451,2]
[323314597,1713886240052,-500.0,0.00019451,2]
[323314600,1713886240063,-500.0,0.00019451,2]
[323314602,1713886240072,-500.0,0.00019451,2]
[323314603,1713886240081,-1248.42,0.00019451,2]
[323314605,1713886240090,-500.0,0.00019451,2]
[323314607,1713886240099,-500.0,0.00019451,2]
[323314610,1713886240111,-500.0,0.00019451,2]
[323314612,1713886240120,-500.0,0.00019451,2]
[323314613,1713886240130,-919.14,0.00019451,2]
[323314615,1713886240138,-500.0,0.00019451,2]
[323314617,1713886240147,-500.0,0.00019451,2]
[323314619,1713886240157,-500.0,0.00019451,2]
[323314621,1713886240166,-500.0,0.00019451,2]
[323314623,1713886240175,-500.0,0.00019451,2]
[323314625,1713886240184,-500.0,0.00019451,2]
[323314627,1713886240195,-500.0,0.00019451,2]
[323314629,1713886240204,-500.0,0.00019451,2]
[323314631,1713886240214,-317.65105873,0.00019451,2]
[323314633,1713886240224,-500.0,0.00019451,2]
[323314636,1713886240234,-500.0,0.00019451,2]
[323314637,1713886240243,-580.47,0.00019451,2]
[323314639,1713886240253,-500.0,0.00019451,2]
[323314642,1713886240263,-500.0,0.00019451,2]
[323314644,1713886240272,-500.0,0.00019451,2]
[323314646,1713886240281,-500.0,0.00019451,2]
[323314648,1713886240290,-500.0,0.00019451,2]
[323314650,1713886240300,-974.63,0.00019451,2]
[323314652,1713886240309,-500.0,0.00019451,2]
[323314654,1713886240319,-500.0,0.00019451,2]
[323314656,1713886240328,-500.0,0.00019451,2]
[323314658,1713886240338,-500.0,0.00019451,2]
[323314660,1713886240347,-500.0,0.00019451,2]
[323314662,1713886240356,-500.0,0.00019451,2]
[323314664,1713886240365,-155.6130199,0.00019451,2]
[323314666,1713886240374,-500.0,0.00019451,2]
[323314668,1713886240384,-500.0,0.00019451,2]
[323314670,1713886240393,-500.0,0.00019451,2]
[323314672,1713886240402,-500.0,0.00019451,2]
[323314674,1713886240411,-500.0,0.00019451,2]
[323314675,1713886240420,-500.0,0.00019451,2]
[323314677,1713886240430,-500.0,0.00019451,2]
[323314679,1713886240441,-500.0,0.00019451,2]
[323314682,1713886240450,-500.0,0.00019451,2]
[323314686,1713886240460,-500.0,0.00019451,2]
[323314688,1713886240469,-500.0,0.00019451,2]
[323314690,1713886240478,-254.83873137,0.00019451,2]
[323314692,1713886240487,-500.0,0.00019451,2]
[323314694,1713886240497,-500.0,0.00019451,2]
[323314696,1713886240506,-500.0,0.00019451,2]
[323314698,1713886240515,-800.19,0.00019451,2]
[323314700,1713886240524,-500.0,0.00019451,2]
[323314702,1713886240534,-2491.27,0.00019451,2]
[323314703,1713886240544,-500.0,0.00019451,2]
[323314704,1713886240553,-500.0,0.00019451,2]
[323314705,1713886240563,-500.0,0.00019451,2]
[323314706,1713886240573,-502.74587075,0.00019451,2]
[323314707,1713886240582,-500.0,0.00019451,2]
[323314708,1713886240591,-500.0,0.00019451,2]
[323314709,1713886240600,-500.0,0.00019451,2]
[323314710,1713886240609,-724.65,0.00019451,2]
[323314711,1713886240619,-500.0,0.00019451,2]
[323314712,1713886240628,-500.0,0.00019451,2]
[323314713,1713886240637,-500.0,0.00019451,2]
[323314714,1713886240646,-500.0,0.00019451,2]
[323314715,1713886240656,-500.0,0.00019451,2]
[323314716,1713886240664,-500.0,0.00019451,2]
[323314717,1713886240674,-500.0,0.00019451,2]
[323314718,1713886240684,-1177.24,0.00019451,2]
[323314719,1713886240696,-500.0,0.00019451,2]
[323314720,1713886240707,-500.0,0.00019451,2]
[323314721,1713886240716,-500.0,0.00019451,2]
[323314722,1713886240727,-500.0,0.00019451,2]
[323314723,1713886240736,-2633.68,0.00019451,2]
[323314724,1713886240745,-500.0,0.00019451,2]
[323314725,1713886240754,-500.0,0.00019451,2]
[323314726,1713886240764,-500.0,0.00019451,2]
[323314727,1713886240774,-500.0,0.00019451,2]
[323314728,1713886240783,-500.0,0.00019451,2]
[323314729,1713886240793,-500.0,0.00019451,2]
[323314730,1713886240803,-500.0,0.00019451,2]
[323314731,1713886240812,-500.78952841,0.00019451,2]
[323314732,1713886240822,-500.0,0.00019451,2]
[323314733,1713886240831,-500.0,0.00019451,2]
[323314734,1713886240841,-500.0,0.00019451,2]
[323314735,1713886240851,-559.9,0.00019451,2]
[323314736,1713886240860,-500.0,0.00019451,2]
[323314737,1713886240870,-500.0,0.00019451,2]
[323314738,1713886240880,-500.0,0.00019451,2]
[323314739,1713886240889,-500.0,0.00019451,2]
[323314740,1713886240899,-500.0,0.00019451,2]
[323314741,1713886240908,-500.0,0.00019451,2]
[323314742,1713886240917,-500.0,0.00019451,2]
[323314743,1713886240927,-500.0,0.00019451,2]
[323314744,1713886240936,-500.0,0.00019451,2]
[323314745,1713886240948,-500.08025782,0.00019451,2]
[323314746,1713886240957,-500.0,0.00019451,2]
[323314747,1713886240966,-518.33017643,0.00019451,2]
[323314748,1713886240976,-500.0,0.00019451,2]
[323314749,1713886240985,-500.0,0.00019451,2]
[323314750,1713886240995,-500.0,0.00019451,2]
[323314751,1713886241005,-500.0,0.00019451,2]
[323314752,1713886241016,-500.0,0.00019451,2]
[323314753,1713886241029,-500.0,0.00019451,2]
[323314754,1713886241039,-1029.29,0.00019451,2]
[323314755,1713886241048,-228.59812908,0.00019451,2]
[323314756,1713886241059,-500.0,0.00019451,2]
[323314757,1713886241069,-500.0,0.00019451,2]
[323314758,1713886241078,-500.0,0.00019451,2]
[323314759,1713886241087,-500.0,0.00019451,2]
[323314760,1713886241098,-500.0,0.00019451,2]
[323314762,1713886241108,-507.17171376,0.00019451,2]
[323314763,1713886241118,-501.68120795,0.00019451,2]
[323314765,1713886241127,-500.0,0.00019451,2]
[323314767,1713886241136,-500.0,0.00019451,2]
[323314780,1713886241232,-500.0,0.00019451,2]
[323314782,1713886241255,-500.0,0.00019451,2]
[323314784,1713886241264,-500.0,0.00019451,2]
[323314786,1713886241274,-500.0,0.00019451,2]
[323314788,1713886241283,-500.0,0.00019452,2]
[323314790,1713886241292,-500.0,0.00019452,2]
[323314792,1713886241302,-500.0,0.00019452,2]
[323314794,1713886241311,-1054.9,0.00019452,2]
[323314796,1713886241321,-626.44,0.00019452,2]
[323314798,1713886241330,-500.0,0.00019452,2]
[323314800,1713886241340,-844.11,0.00019452,2]
[323314802,1713886241349,-617.18,0.00019452,2]
[323314804,1713886241358,-500.0,0.00019452,2]
[323314806,1713886241367,-1366.2,0.00019452,2]
[323314808,1713886241376,-527.52,0.00019452,2]
[323314810,1713886241385,-500.89,0.00019452,2]
[323314811,1713886241394,-500.0,0.00019452,2]
[323314813,1713886241404,-644.94823493,0.00019452,2]
[323314815,1713886241414,-500.0,0.00019452,2]
[323314817,1713886241423,-525.74,0.00019452,2]
[323314819,1713886241432,-868.46,0.00019452,2]
[323314821,1713886241444,-500.0,0.00019452,2]
[323314823,1713886241453,-500.0,0.00019452,2]
[323314825,1713886241462,-596.98,0.00019452,2]
[323314827,1713886241471,-500.0,0.00019452,2]
[323314829,1713886241480,-1665.09,0.00019452,2]
[323314830,1713886241489,-500.0,0.00019452,2]
[323314833,1713886241500,-500.0,0.00019452,2]
[323314834,1713886241509,-500.0,0.00019452,2]
[323314837,1713886241518,-500.0,0.00019452,2]
[323314838,1713886241528,-500.0,0.00019452,2]
[323314841,1713886241538,-196.56986936,0.00019452,2]
[323314843,1713886241547,-500.0,0.00019452,2]
[323314844,1713886241556,-570.31,0.00019452,2]
[323314846,1713886241565,-500.0,0.00019452,2]
[323314849,1713886241575,-500.0,0.00019452,2]
[323314850,1713886241584,-539.94,0.00019452,2]
[323314852,1713886241593,-500.0,0.00019452,2]
[323314854,1713886241603,-1199.02,0.00019452,2]
[323314856,1713886241612,-586.12,0.00019452,2]
[323314858,1713886241622,-500.0,0.00019452,2]
[323314860,1713886241631,-500.0,0.00019452,2]
[323314862,1713886241640,-500.0,0.00019452,2]
[323314864,1713886241649,-521.96,0.00019452,2]
[323314866,1713886241658,-500.0,0.00019452,2]
[323314868,1713886241668,-500.0,0.00019452,2]
[323314870,1713886241677,-500.0,0.00019452,2]
[323314872,1713886241686,-1114.95,0.00019452,2]
[323314874,1713886241697,-816.42,0.00019452,2]
[323314876,1713886241706,-237.4846105,0.00019452,2]
[323314878,1713886241715,-904.34,0.00019452,2]
[323314880,1713886241724,-896.42,0.00019452,2]
[323314882,1713886241734,-500.0,0.00019452,2]
[323314884,1713886241743,-500.0,0.00019452,2]